Workbook

Sheet Teste T e Tamanho do efeito
H4: Prof. Luis Anunciação, PhD
H5: Psicometria
H6: www.anovabr.com
E9: Este conteúdo foi desenvolvido para calcular o resultado de um teste T, bem como o tamanho do efeito. Esta é uma medida utilizada após obter significância estatística e que auxilia a entender o efeito de determinado tratamento. Sabe-se que valores p < 0,05 podem ocorrer por tamanho amostral e flutuações estatísticas. Portanto, é importante sempre reportar o tamanho do efeito para reduzir erros do tipo I. Caso não saiba o N, o g de Hedges não será calculado. Atenção, os valores estão em módulo.
G16: Grupo 1 | J16: Grupo 2
G17: Média | H17: 2.3 | J17: Média | K17: 3
G18: Desvio-Padrão | H18: 1.2 | J18: Desvio-Padrão | K18: 2.1
G19: N | H19: 50 | J19: N | K19: 100
D21: Padronizadas | J21: Brutas | O21: Intervalo de confiança
D22: P valor | E22: d de cohen | F22: g de hedges | G22: Correlação | H22: R2 | J22: |Δmédias| | K22: Spooled | L22: df | M22: T crítico | N22: Teste T | O22: Inferior | P22: Superior
D23: =_xlfn.T.DIST.2T(J23/(K23*SQRT(1/H19+1/K19)),L23) -> 0.03059438739 | E23: =J23/SQRT((H18^2+K18^2)/2) -> 0.4092937423 | F23: =J23/K23 -> 0.3781470205 | G23: =E23/SQRT(E23^2+4) -> 0.2004916025 | H23: =G23^2 -> 0.04019688269 | J23: =ABS(H17-K17) -> 0.7 | K23: =SQRT(((H19-1)*H18^2+(K19-1)*K18^2)/(H19+K19-2)) -> 1.851131867 | L23: =H19+K19-2 -> 148 | M23: =_xlfn.T.INV.2T(0.05,L23) -> 1.976122494 | N23: =J23/(K23*SQRT(1/H19+1/K19)) -> 2.183232841 | O23: =J23-(M23*(K23/(SQRT(H19*K19/(H19+K19))))) -> 0.06640484705 | P23: =J23+(M23*(K23/(SQRT(H19*K19/(H19+K19))))) -> 1.333595153
D24: =IF(D23<0.05,"*","") -> *
D25: Pontos de corte
D26: 0.2 | E26: Pequeno | I26: ="O Teste T (amostras independentes) chegou ao p valor de "&ROUND(D23,1) -> O Teste T (amostras independentes) chegou ao p valor de 0
D27: 0.5 | E27: Médio | I27: ="O tamanho do efeito foi de "&ROUND(E23,1) -> O tamanho do efeito foi de 0.4
D28: 0.8 | E28: Grande
D29: >= 1.20 | E29: Muito grande
D30: THRESHOLDS FOR INTERPRETING EFFECT SIZES
D31: Paul D. Ellis, Hong Kong Polytechnic University
G48: Data simulation
G49: Grupo 1 | H49: Grupo 2
G50: =NORMINV(RAND(), 2.3,12) -> 19.77320934 | H50: =NORMINV(RAND(), 3,2.1) -> 5.318950415
G51: -0.7599568586 | H51: 0.2644805513
G52: -15.72851115 | H52: 2.33083939
G53: 7.324258119 | H53: 1.908046415
G54: 9.746430134 | H54: 3.605057597
D55: Mínimo | E55: =MIN(G50:G500) -> -24.93891884 | F55: =MIN(H50:H500) -> -1.835629707 | G55: -5.760994716 | H55: 2.831193951
D56: Q1 | E56: =_xlfn.QUARTILE.INC(G50:G500,1) -> -3.706509332 | F56: =_xlfn.QUARTILE.INC(H50:H500,1) -> 1.683657302 | G56: 10.06760434 | H56: 4.195152712
D57: Mediana | E57: =MEDIAN(G50:G500) -> 1.00249133 | F57: =MEDIAN(H50:H500) -> 3.558701532 | G57: 3.135326983 | H57: 5.144700191
D58: Q3 | E58: =_xlfn.QUARTILE.INC(G50:G500,3) -> 9.669293884 | F58: =_xlfn.QUARTILE.INC(H50:H500,3) -> 4.889090305 | G58: -7.110310521 | H58: 4.057431772
D59: Máximo | E59: =MAX(G50:G500) -> 23.1467711 | F59: =MAX(H50:H500) -> 9.057506764 | G59: -2.113110575 | H59: 4.323732035
G60: -1.499112781 | H60: 4.992013945
D61: Diferença | E61: Grupo1 | F61: Grupo 2 | G61: 2.622750416 | H61: 1.924378818
D62: mínimo | E62: =E55 -> -24.93891884 | F62: =F55 -> -1.835629707 | G62: -0.4095038718 | H62: 3.884621192
D63: q1-min | E63: =E56-E55 -> 21.23240951 | F63: 3.51928701 | G63: 14.62899462 | H63: 3.915018079
D64: mediana-q1 | E64: 4.709000662 | F64: 1.87504423 | G64: -15.67776376 | H64: 6.378354024
D65: q3-med | E65: 8.666802554 | F65: 1.330388773 | G65: 4.597423466 | H65: 7.631071966
D66: max-q3 | E66: 13.47747721 | F66: 4.168416459 | G66: 10.62299279 | H66: 0.4013355871
G67: 1.60299176 | H67: 1.161096153
G68: -3.861841303 | H68: 1.151124731
G69: 0.7393346262 | H69: 3.163218095
G70: 18.64326732 | H70: 1.587155572
G71: 11.27365862 | H71: 2.470900144
G72: 13.50582391 | H72: 4.314297339
G73: 11.59089356 | H73: 3.297486951
G74: -2.137173978 | H74: -0.3818593708
G75: 13.31063366 | H75: 4.530418574
G76: -6.729939562 | H76: 5.636426764
G77: -0.4753422965 | H77: 1.438938514
G78: 5.58107595 | H78: 1.231506267
G79: -0.04119446138 | H79: 6.155835576
G80: -5.844296225 | H80: -1.489605602
G81: -3.240513418 | H81: 0.8840256294
G82: =NORMINV(RAND(), 2.3,12) -> 0.9955046712 | H82: =NORMINV(RAND(), 3,2.1) -> 3.512345466
G83: -3.995326098 | H83: 2.673725271
G84: -0.6251641262 | H84: 4.122570064
G85: 13.55352558 | H85: 2.469691406
G86: 1.009477989 | H86: 3.090768905
G87: 2.699442547 | H87: 5.566644654
G88: -10.90274343 | H88: 4.191200058
G89: -2.922985766 | H89: 4.584469756
G90: 14.36000479 | H90: -1.829694658
G91: -9.917565056 | H91: 1.793409027
G92: 6.736941309 | H92: -0.1163980737
G93: 2.044948989 | H93: 1.131662231
G94: 23.1467711 | H94: -0.5967260153
G95: 4.608099247 | H95: 6.188953034
G96: -24.93891884 | H96: 1.835595691
G97: -5.382422532 | H97: 3.809474136
G98: 9.437885131 | H98: -0.3240979425
G99: -16.47062058 | H99: 3.840312836
H100: 9.057506764
H101: 6.771427897
H102: 1.65137563
H103: 3.223679044
H104: 0.4206177741
H105: 3.787706499
H106: 1.446855298
H107: 3.189191408
H108: -1.835629707
H109: 6.649607197
H110: 6.087393981
H111: 3.709417904
H112: 3.69340143
H113: 5.961663877
H114: =NORMINV(RAND(), 3,2.1) -> 1.167827923
H115: 0.2549455471
H116: 1.895539145
H117: 1.06452216
H118: 1.614443859
H119: 3.965975768
H120: 5.242322318
H121: 2.8279246
H122: 4.046305857
H123: 5.818722917
H124: 0.6007607103
H125: 3.831400085
H126: 6.678634306
H127: 6.194149401
H128: 5.877354716
H129: 1.694417859
H130: 4.089288653
H131: 5.792672794
H132: 4.868948904
H133: 2.928526078
H134: 3.414837136
H135: 3.193705614
H136: 4.949514509
H137: 6.13875703
H138: 2.91466929
H139: 3.204576388
H140: 5.166095011
H141: 4.099273552
H142: 4.152806835
H143: 3.043789138
H144: 2.771301429
H145: 4.069832114
H146: 5.380993632
H147: 3.655134684
H148: 1.342226696
H149: 5.143388135
